[Event "FIDE World Cup 2013"]
[Site "TromsÃ¸"]
[Date "2013.08.13"]
[Round "1.4"]
[White "Ragger, Markus"]
[Black "Popov, Ivan"]
[Result "1/2-1/2"]
[ECO "D85"]
[WhiteElo "2680"]
[BlackElo "2632"]
[PlyCount "180"]
[EventDate "2013.??.??"]
[EventCountry "NOR"]
[TimeControl "1500+10"]

1. d4 {[%emt 0:00:00]} Nf6 {[%emt 0:00:00]} 2. c4 {[%emt 0:00:00]} g6 {[%emt 0:
00:00]} 3. Nc3 {[%emt 0:00:00]} d5 {[%emt 0:00:00]} 4. cxd5 {[%emt 0:00:00]}
Nxd5 {[%emt 0:00:00]} 5. Bd2 {[%emt 0:00:06]} Bg7 {[%emt 0:00:02]} 6. e4 {
[%emt 0:00:03]} Nxc3 {[%emt 0:00:05]} 7. Bxc3 {[%emt 0:00:02]} O-O {[%emt 0:00:
03]} 8. Qd2 {[%emt 0:00:02]} e5 {[%emt 0:00:02]} 9. dxe5 {[%emt 0:01:43]} Qh4 {
[%emt 0:00:02]} 10. Qc2 {[%emt 0:02:21]} Nc6 {[%emt 0:00:05]} 11. Nf3 {[%emt 0:
00:09]} Qe7 {[%emt 0:00:03]} 12. Be2 {[%emt 0:00:48]} Bg4 {[%emt 0:00:04]} 13.
O-O {[%emt 0:00:46]} Bxf3 {[%emt 0:00:02]} 14. Bxf3 {[%emt 0:00:01]} Bxe5 {
[%emt 0:00:02]} 15. Rfd1 {[%emt 0:01:03]} Rad8 {[%emt 0:00:29]} 16. g3 {[%emt
0:01:34]} Rxd1+ {[%emt 0:03:56]} 17. Rxd1 {[%emt 0:00:08]} Rd8 {[%emt 0:00:01]}
18. Rxd8+ {[%emt 0:01:53]} Qxd8 {[%emt 0:00:13]} 19. Be2 {[%emt 0:00:31]} Bxc3
{[%emt 0:01:03]} 20. bxc3 {[%emt 0:00:17]} Qd6 {[%emt 0:00:24]} 21. Kg2 {[%emt
0:00:36]} g5 {[%emt 0:01:19]} 22. Qc1 {[%emt 0:00:11]} Qc5 {[%emt 0:02:05]} 23.
Qd2 {[%emt 0:00:39]} Kg7 {[%emt 0:00:28]} 24. f4 {[%emt 0:00:29]} h6 {[%emt 0:
00:53]} 25. e5 {[%emt 0:02:25]} gxf4 {[%emt 0:02:05]} 26. gxf4 {[%emt 0:00:01]}
Ne7 {[%emt 0:00:35]} 27. Bf3 {[%emt 0:01:01]} b6 {[%emt 0:01:26]} 28. Be4 {
[%emt 0:02:50]} Qc4 {[%emt 0:00:03]} 29. Qc2 {[%emt 0:01:08]} f6 {[%emt 0:02:
32]} 30. exf6+ {[%emt 0:00:39]} Kxf6 {[%emt 0:00:02]} 31. Kg3 {[%emt 0:00:15]}
Qc5 {[%emt 0:02:39]} 32. Qd2 {[%emt 0:01:16]} Qg1+ {[%emt 0:00:08]} 33. Kh3 {
[%emt 0:01:03]} a5 {[%emt 0:02:10]} 34. Bf3 {[%emt 0:02:52]} Qf1+ {[%emt 0:02:
08]} 35. Bg2 {[%emt 0:00:12]} Qc4 {[%emt 0:00:12]} 36. Bf3 {[%emt 0:00:16]}
Qe6+ {[%emt 0:00:47]} 37. Bg4 {[%emt 0:00:45]} Qd5 {[%emt 0:00:53]} 38. Qe2 {
[%emt 0:00:52]} Ng6 {[%emt 0:00:15]} 39. Kg3 {[%emt 0:00:16]} Ne7 {[%emt 0:00:
59]} 40. c4 {[%emt 0:00:27]} Qd6 {[%emt 0:01:27]} 41. Qe3 {[%emt 0:00:30]} Nf5+
{[%emt 0:01:15]} 42. Bxf5 {[%emt 0:00:04]} Kxf5 {[%emt 0:00:01]} 43. Qf3 {
[%emt 0:00:31]} Qg6+ {[%emt 0:00:19]} 44. Kf2 {[%emt 0:00:50]} Qg7 {[%emt 0:00:
23]} 45. Qe3 {[%emt 0:00:33]} c5 {[%emt 0:00:22]} 46. Qd3+ {[%emt 0:00:18]}
Kxf4 {[%emt 0:00:10]} 47. Qf3+ {[%emt 0:00:03]} Kg5 {[%emt 0:00:01]} 48. Qg3+ {
[%emt 0:00:08]} Kf6 {[%emt 0:00:01]} 49. Qd6+ {[%emt 0:00:01]} Kf7 {[%emt 0:00:
19]} 50. Qc7+ {[%emt 0:00:16]} Kg8 {[%emt 0:00:10]} 51. Qxb6 {[%emt 0:00:02]}
Qd4+ {[%emt 0:00:07]} 52. Kf3 {[%emt 0:00:05]} Qd3+ {[%emt 0:00:23]} 53. Kf2 {
[%emt 0:00:11]} Qxc4 {[%emt 0:00:14]} 54. Qg6+ {[%emt 0:00:04]} Kf8 {[%emt 0:
00:01]} 55. Qxh6+ {[%emt 0:00:02]} Ke7 {[%emt 0:00:01]} 56. Qg7+ {[%emt 0:00:
17]} Kd6 {[%emt 0:00:07]} 57. Qf6+ {[%emt 0:00:06]} Kc7 {[%emt 0:00:05]} 58.
Qe5+ {[%emt 0:00:43]} Kb6 {[%emt 0:00:15]} 59. Qb2+ {[%emt 0:00:02]} Ka7 {
[%emt 0:00:11]} 60. Qg7+ {[%emt 0:00:08]} Ka6 {[%emt 0:00:01]} 61. Qf6+ {[%emt
0:00:01]} Kb5 {[%emt 0:00:06]} 62. Qb2+ {[%emt 0:00:02]} Ka4 {[%emt 0:00:04]}
63. h3 {[%emt 0:00:29]} Qf4+ {[%emt 0:00:22]} 64. Kg2 {[%emt 0:00:07]} Qe4+ {
[%emt 0:00:11]} 65. Kg3 {[%emt 0:00:07]} Qd3+ {[%emt 0:00:09]} 66. Kg2 {[%emt
0:00:11]} c4 {[%emt 0:00:03]} 67. h4 {[%emt 0:00:02]} Qe4+ {[%emt 0:00:15]} 68.
Kg3 {[%emt 0:00:07]} Qe1+ {[%emt 0:00:06]} 69. Kh3 {[%emt 0:00:15]} Qb4 {[%emt
0:00:38]} 70. Qc2+ {[%emt 0:00:00]} Ka3 {[%emt 0:00:01]} 71. h5 {[%emt 0:00:01]
} c3 {[%emt 0:00:09]} 72. h6 {[%emt 0:00:14]} Qb2 {[%emt 0:00:18]} 73. Qf5 {
[%emt 0:00:02]} Kxa2 {[%emt 0:00:13]} 74. h7 {[%emt 0:00:32]} c2 {[%emt 0:00:
06]} 75. Qxa5+ {[%emt 0:00:07]} Kb1 {[%emt 0:00:02]} 76. Qf5 {[%emt 0:00:01]}
Qc3+ {[%emt 0:00:19]} 77. Kg4 {[%emt 0:00:14]} Qd4+ {[%emt 0:00:16]} 78. Kf3 {
[%emt 0:00:24]} Qd1+ {[%emt 0:00:16]} 79. Kg2 {[%emt 0:00:18]} Qe2+ {[%emt 0:
00:04]} 80. Kg3 {[%emt 0:00:11]} Qe3+ {[%emt 0:00:08]} 81. Kg2 {[%emt 0:00:03]}
Qd2+ {[%emt 0:00:03]} 82. Kf3 {[%emt 0:00:06]} Qc3+ {[%emt 0:00:04]} 83. Kg2 {
[%emt 0:00:09]} Qd4 {[%emt 0:00:32]} 84. Qb5+ {[%emt 0:00:17]} Ka2 {[%emt 0:00:
07]} 85. Qa6+ {[%emt 0:00:16]} Kb2 {[%emt 0:00:05]} 86. Qb5+ {[%emt 0:00:05]}
Kc3 {[%emt 0:00:03]} 87. Qc6+ {[%emt 0:00:01]} Kb2 {[%emt 0:00:21]} 88. Qb5+ {
[%emt 0:00:03]} Kc1 {[%emt 0:00:05]} 89. Qf1+ {[%emt 0:00:07]} Kd2 {[%emt 0:00:
02]} 90. Qf2+ {[%emt 0:00:09]} Qxf2+ {[%emt 0:00:05]} 1/2-1/2

[Event "FIDE World Cup 2013"]
[Site "TromsÃ¸"]
[Date "2013.08.13"]
[Round "1.4"]
[White "Ramirez, Alejandro"]
[Black "Tomashevsky, Evgeny"]
[Result "1/2-1/2"]
[ECO "A09"]
[WhiteElo "2583"]
[BlackElo "2709"]
[PlyCount "54"]
[EventDate "2013.??.??"]
[EventCountry "NOR"]
[TimeControl "1500+10"]

1. Nf3 {[%emt 0:00:00]} d5 {[%emt 0:00:00]} 2. c4 {[%emt 0:00:00]} d4 {[%emt 0:
00:00]} 3. e3 {[%emt 0:00:11]} Nc6 {[%emt 0:00:00]} 4. exd4 {[%emt 0:00:05]}
Nxd4 {[%emt 0:00:00]} 5. Nxd4 {[%emt 0:00:02]} Qxd4 {[%emt 0:00:01]} 6. d3 {
[%emt 0:00:05]} Nh6 {[%emt 0:00:04]} 7. Nc3 {[%emt 0:00:46]} c6 {[%emt 0:00:13]
} 8. Be3 {[%emt 0:01:05]} Qd8 {[%emt 0:00:05]} 9. d4 {[%emt 0:01:15]} Nf5 {
[%emt 0:00:05]} 10. Qd2 {[%emt 0:00:41]} g6 {[%emt 0:01:03]} 11. Be2 {[%emt 0:
00:32]} Bg7 {[%emt 0:00:06]} 12. Rd1 {[%emt 0:00:12]} O-O {[%emt 0:01:45]} 13.
O-O {[%emt 0:00:03]} Nxe3 {[%emt 0:01:08]} 14. Qxe3 {[%emt 0:00:26]} Re8 {
[%emt 0:01:02]} 15. d5 {[%emt 0:01:39]} cxd5 {[%emt 0:07:24]} 16. Rxd5 {[%emt
0:01:45]} Qb6 {[%emt 0:00:24]} 17. Qxb6 {[%emt 0:04:58]} axb6 {[%emt 0:00:01]}
18. Ra1 {[%emt 0:00:04]} Be6 {[%emt 0:05:18]} 19. Rb5 {[%emt 0:00:05]} Bd4 {
[%emt 0:03:00]} 20. Nd5 {[%emt 0:02:49]} Bxd5 {[%emt 0:00:02]} 21. cxd5 {[%emt
0:00:03]} Rec8 {[%emt 0:00:10]} 22. Rd1 {[%emt 0:01:39]} Ra4 {[%emt 0:03:04]}
23. b3 {[%emt 0:04:17]} Rxa2 {[%emt 0:00:22]} 24. Rxd4 {[%emt 0:00:06]} Rxe2 {
[%emt 0:00:01]} 25. g3 {[%emt 0:00:01]} Rcc2 {[%emt 0:00:29]} 26. Rf4 {[%emt 0:
00:10]} Rcd2 {[%emt 0:00:21]} 27. Kf1 {[%emt 0:03:10]} Re5 {[%emt 0:00:02]}
1/2-1/2

[Event "FIDE World Cup 2013"]
[Site "TromsÃ¸"]
[Date "2013.08.13"]
[Round "1.4"]
[White "Riazantsev, Alexander"]
[Black "Felgaer, Ruben"]
[Result "1/2-1/2"]
[ECO "D10"]
[WhiteElo "2708"]
[BlackElo "2586"]
[PlyCount "143"]
[EventDate "2013.??.??"]
[EventCountry "NOR"]
[TimeControl "1500+10"]

1. d4 {[%emt 0:00:00]} d5 {[%emt 0:00:00]} 2. c4 {[%emt 0:00:00]} c6 {[%emt 0:
00:00]} 3. Nc3 {[%emt 0:00:00]} dxc4 {[%emt 0:00:00]} 4. e4 {[%emt 0:00:00]} b5
{[%emt 0:00:00]} 5. a4 {[%emt 0:00:00]} b4 {[%emt 0:00:00]} 6. Nce2 {[%emt 0:
00:00]} e6 {[%emt 0:00:09]} 7. Nf3 {[%emt 0:00:00]} Ba6 {[%emt 0:00:06]} 8. Ng3
{[%emt 0:00:01]} c5 {[%emt 0:00:08]} 9. d5 {[%emt 0:00:14]} exd5 {[%emt 0:00:
06]} 10. exd5 {[%emt 0:00:03]} Nf6 {[%emt 0:00:04]} 11. Bg5 {[%emt 0:00:02]}
Qxd5 {[%emt 0:00:33]} 12. Qxd5 {[%emt 0:00:02]} Nxd5 {[%emt 0:00:02]} 13. O-O-O
{[%emt 0:00:01]} h6 {[%emt 0:00:02]} 14. Re1+ {[%emt 0:02:15]} Be7 {[%emt 0:04:
09]} 15. Bxe7 {[%emt 0:02:27]} Nxe7 {[%emt 0:00:02]} 16. Nf5 {[%emt 0:00:01]}
Nbc6 {[%emt 0:00:06]} 17. Nd6+ {[%emt 0:00:22]} Kd7 {[%emt 0:03:17]} 18. Nxf7 {
[%emt 0:00:34]} Rhf8 {[%emt 0:01:00]} 19. N7e5+ {[%emt 0:00:32]} Nxe5 {[%emt 0:
00:29]} 20. Nxe5+ {[%emt 0:00:02]} Kc7 {[%emt 0:00:01]} 21. Bxc4 {[%emt 0:01:
18]} Bxc4 {[%emt 0:00:02]} 22. Nxc4 {[%emt 0:00:01]} Nc6 {[%emt 0:00:08]} 23.
Re2 {[%emt 0:05:55]} Rad8 {[%emt 0:00:54]} 24. Kb1 {[%emt 0:02:19]} Rfe8 {
[%emt 0:02:33]} 25. Re3 {[%emt 0:02:07]} Rxe3 {[%emt 0:02:58]} 26. fxe3 {[%emt
0:00:02]} Rf8 {[%emt 0:00:00]} 27. Rc1 {[%emt 0:01:38]} g5 {[%emt 0:04:31]} 28.
b3 {[%emt 0:00:39]} Rf2 {[%emt 0:01:27]} 29. Rc2 {[%emt 0:00:08]} Rf1+ {[%emt
0:00:01]} 30. Rc1 {[%emt 0:01:01]} Rf2 {[%emt 0:00:01]} 31. Rc2 {[%emt 0:00:01]
} Rf1+ {[%emt 0:00:01]} 32. Kb2 {[%emt 0:00:01]} Rg1 {[%emt 0:02:52]} 33. Rf2 {
[%emt 0:03:21]} Kd7 {[%emt 0:00:21]} 34. Rd2+ {[%emt 0:01:22]} Ke7 {[%emt 0:00:
26]} 35. Kc2 {[%emt 0:00:14]} Nd8 {[%emt 0:01:41]} 36. Ne5 {[%emt 0:00:26]} a6
{[%emt 0:00:33]} 37. g3 {[%emt 0:01:00]} Nf7 {[%emt 0:00:34]} 38. Nc6+ {[%emt
0:00:58]} Ke6 {[%emt 0:00:09]} 39. Nb8 {[%emt 0:00:01]} Nd6 {[%emt 0:00:19]}
40. Nxa6 {[%emt 0:00:03]} Ne4 {[%emt 0:00:02]} 41. Nc7+ {[%emt 0:00:31]} Ke7 {
[%emt 0:00:01]} 42. Rd5 {[%emt 0:00:08]} Nf6 {[%emt 0:01:37]} 43. Rxc5 {[%emt
0:00:22]} Rg2+ {[%emt 0:00:11]} 44. Kd3 {[%emt 0:00:20]} Rxh2 {[%emt 0:00:01]}
45. a5 {[%emt 0:00:36]} Nd7 {[%emt 0:00:10]} 46. Rf5 {[%emt 0:00:22]} Rb2 {
[%emt 0:00:15]} 47. Nb5 {[%emt 0:00:49]} Rxb3+ {[%emt 0:00:09]} 48. Kd4 {[%emt
0:00:11]} Rb2 {[%emt 0:00:25]} 49. a6 {[%emt 0:00:01]} Ra2 {[%emt 0:00:01]} 50.
a7 {[%emt 0:00:00]} b3 {[%emt 0:00:09]} 51. Rf1 {[%emt 0:00:10]} b2 {[%emt 0:
00:05]} 52. Rb1 {[%emt 0:00:13]} Nb6 {[%emt 0:00:24]} 53. Kc5 {[%emt 0:00:18]}
Nc8 {[%emt 0:00:18]} 54. Rxb2 {[%emt 0:00:15]} Ra1 {[%emt 0:00:09]} 55. Rh2 {
[%emt 0:00:25]} Nxa7 {[%emt 0:00:01]} 56. Nxa7 {[%emt 0:00:01]} Rxa7 {[%emt 0:
00:00]} 57. Rxh6 {[%emt 0:00:01]} Ra4 {[%emt 0:00:01]} 58. Kd5 {[%emt 0:00:23]}
Rg4 {[%emt 0:00:02]} 59. Rh7+ {[%emt 0:00:03]} Kf6 {[%emt 0:00:06]} 60. e4 {
[%emt 0:00:12]} Rxg3 {[%emt 0:00:02]} 61. e5+ {[%emt 0:00:01]} Kg6 {[%emt 0:00:
03]} 62. Ra7 {[%emt 0:00:13]} Rd3+ {[%emt 0:00:05]} 63. Ke4 {[%emt 0:00:04]}
Rb3 {[%emt 0:00:07]} 64. Ra6+ {[%emt 0:00:16]} Kf7 {[%emt 0:00:11]} 65. Kf5 {
[%emt 0:00:06]} Rf3+ {[%emt 0:00:02]} 66. Kxg5 {[%emt 0:00:02]} Ke7 {[%emt 0:
00:00]} 67. Rf6 {[%emt 0:00:05]} Rxf6 {[%emt 0:00:07]} 68. exf6+ Kf7 69. Kf5 {
[%emt 0:00:03]} Kf8 {[%emt 0:00:01]} 70. Ke6 {[%emt 0:00:00]} Ke8 {[%emt 0:00:
01]} 71. f7+ {[%emt 0:00:01]} Kf8 {[%emt 0:00:00]} 72. Kf6 1/2-1/2

[Event "FIDE World Cup 2013"]
[Site "TromsÃ¸"]
[Date "2013.08.13"]
[Round "1.4"]
[White "Safarli, Eltaj"]
[Black "Amin, Bassem"]
[Result "1-0"]
[ECO "C47"]
[WhiteElo "2660"]
[BlackElo "2650"]
[PlyCount "181"]
[EventDate "2013.??.??"]
[EventCountry "NOR"]
[TimeControl "1500+10"]

1. e4 {[%emt 0:00:00]} e5 {[%emt 0:00:00]} 2. Nf3 {[%emt 0:00:00]} Nc6 {[%emt
0:00:00]} 3. Nc3 {[%emt 0:00:00]} Nf6 {[%emt 0:00:00]} 4. g3 {[%emt 0:00:00]}
g6 {[%emt 0:00:11]} 5. Bg2 {[%emt 0:00:57]} Bg7 {[%emt 0:00:01]} 6. O-O {[%emt
0:00:03]} O-O {[%emt 0:00:03]} 7. d3 {[%emt 0:00:13]} d6 {[%emt 0:00:09]} 8. h3
{[%emt 0:00:07]} Ne8 {[%emt 0:01:30]} 9. Nd5 {[%emt 0:02:05]} Be6 {[%emt 0:00:
24]} 10. c3 {[%emt 0:00:17]} Qc8 {[%emt 0:00:51]} 11. Kh2 {[%emt 0:00:30]} h6 {
[%emt 0:00:44]} 12. d4 {[%emt 0:00:38]} exd4 {[%emt 0:00:44]} 13. Nxd4 {[%emt
0:00:36]} Bxd5 {[%emt 0:01:02]} 14. exd5 {[%emt 0:00:01]} Nxd4 {[%emt 0:01:06]}
15. cxd4 {[%emt 0:00:01]} c5 {[%emt 0:00:34]} 16. dxc6 {[%emt 0:00:38]} bxc6 {
[%emt 0:00:01]} 17. Qa4 {[%emt 0:00:17]} d5 18. Bf4 {[%emt 0:00:48]} Qb7 {
[%emt 0:01:16]} 19. Rac1 Rc8 20. Rc2 {[%emt 0:02:03]} g5 {[%emt 0:00:57]} 21.
Bd2 {[%emt 0:02:24]} Nd6 {[%emt 0:00:20]} 22. Bb4 {[%emt 0:01:53]} Rfd8 {[%emt
0:01:07]} 23. Bc5 {[%emt 0:04:43]} Ne4 24. b3 a6 {[%emt 0:03:42]} 25. Re1 {
[%emt 0:02:51]} Nxc5 {[%emt 0:00:59]} 26. Rxc5 Bf8 {[%emt 0:00:11]} 27. Rc2 {
[%emt 0:00:44]} Qb4 28. Qxb4 {[%emt 0:00:58]} Bxb4 {[%emt 0:00:12]} 29. Rec1 {
[%emt 0:00:01]} Ba3 30. Rd1 {[%emt 0:00:19]} c5 {[%emt 0:00:25]} 31. dxc5 Rxc5
{[%emt 0:00:10]} 32. Rxc5 {[%emt 0:00:16]} Bxc5 {[%emt 0:00:02]} 33. Bxd5 {
[%emt 0:00:02]} Kg7 {[%emt 0:00:11]} 34. Kg2 {[%emt 0:00:02]} Kf6 {[%emt 0:00:
04]} 35. f4 {[%emt 0:00:27]} gxf4 {[%emt 0:00:35]} 36. gxf4 {[%emt 0:00:01]} a5
{[%emt 0:00:58]} 37. Kf3 {[%emt 0:00:02]} Bb4 {[%emt 0:00:51]} 38. Rd3 {[%emt
0:01:57]} Rd7 {[%emt 0:00:10]} 39. Ke2 {[%emt 0:01:18]} Re7+ {[%emt 0:00:11]}
40. Kf3 {[%emt 0:00:01]} Rd7 {[%emt 0:00:01]} 41. h4 {[%emt 0:00:31]} Rd8 {
[%emt 0:00:36]} 42. h5 {[%emt 0:00:02]} Rd7 {[%emt 0:00:03]} 43. Rd4 {[%emt 0:
00:25]} Bc5 {[%emt 0:00:14]} 44. Rd1 {[%emt 0:00:02]} Bb4 {[%emt 0:00:02]} 45.
Rd3 {[%emt 0:01:21]} Rd8 {[%emt 0:00:02]} 46. a4 {[%emt 0:00:46]} Rd7 {[%emt 0:
00:06]} 47. Rd1 {[%emt 0:00:12]} Rd8 {[%emt 0:00:23]} 48. Ke4 {[%emt 0:00:08]}
Re8+ {[%emt 0:00:28]} 49. Kd4 {[%emt 0:00:02]} Re1 {[%emt 0:01:23]} 50. Rd3 {
[%emt 0:00:01]} Rf1 {[%emt 0:00:35]} 51. Ke4 {[%emt 0:00:51]} Re1+ {[%emt 0:01:
37]} 52. Kf3 {[%emt 0:00:02]} Rf1+ {[%emt 0:00:02]} 53. Kg3 {[%emt 0:00:55]}
Rc1 {[%emt 0:02:22]} 54. Rd4 {[%emt 0:00:32]} Rc3+ {[%emt 0:02:12]} 55. Kg4 {
[%emt 0:00:06]} Bc5 {[%emt 0:00:10]} 56. Rd2 {[%emt 0:00:02]} Bb4 {[%emt 0:00:
56]} 57. Rd1 {[%emt 0:00:26]} Re3 {[%emt 0:00:18]} 58. Bc4 {[%emt 0:00:06]} Re1
{[%emt 0:00:52]} 59. Rd7 {[%emt 0:00:06]} Re7 {[%emt 0:00:02]} 60. Rd5 {[%emt
0:00:06]} Rc7 {[%emt 0:00:23]} 61. Rf5+ {[%emt 0:00:05]} Kg7 {[%emt 0:00:01]}
62. Rb5 {[%emt 0:00:01]} Kf6 {[%emt 0:00:33]} 63. Rb6+ {[%emt 0:00:01]} Kg7 {
[%emt 0:00:04]} 64. Kf5 {[%emt 0:00:25]} Bd2 {[%emt 0:00:34]} 65. Rb5 {[%emt 0:
00:33]} Bb4 {[%emt 0:00:10]} 66. Ke4 {[%emt 0:00:17]} Kf6 {[%emt 0:00:32]} 67.
Rb6+ {[%emt 0:00:09]} Kg7 {[%emt 0:00:02]} 68. Bd5 {[%emt 0:00:10]} Re7+ {
[%emt 0:00:07]} 69. Kd4 {[%emt 0:00:05]} Bd2 {[%emt 0:00:14]} 70. Ra6 {[%emt 0:
00:01]} Rc7 {[%emt 0:00:30]} 71. f5 {[%emt 0:00:27]} Bc3+ {[%emt 0:00:14]} 72.
Kd3 {[%emt 0:00:12]} Rc5 {[%emt 0:01:10]} 73. Ke4 {[%emt 0:00:08]} Rc7 {[%emt
0:00:12]} 74. f6+ {[%emt 0:00:04]} Bxf6 {[%emt 0:00:18]} 75. Rxa5 {[%emt 0:00:
02]} Re7+ {[%emt 0:00:01]} 76. Kd3 {[%emt 0:00:13]} Re5 {[%emt 0:00:09]} 77.
Rb5 {[%emt 0:00:04]} Rxh5 {[%emt 0:00:03]} 78. a5 {[%emt 0:00:00]} Rh3+ {[%emt
0:00:14]} 79. Kc4 {[%emt 0:00:18]} Rc3+ {[%emt 0:00:03]} 80. Kb4 {[%emt 0:00:
01]} Rc1 {[%emt 0:00:03]} 81. Rb7 {[%emt 0:00:10]} Bc3+ {[%emt 0:00:24]} 82.
Kb5 {[%emt 0:00:01]} Rf1 {[%emt 0:00:09]} 83. a6 {[%emt 0:00:09]} Bd4 {[%emt 0:
00:06]} 84. Bc4 {[%emt 0:00:41]} Rf2 {[%emt 0:00:23]} 85. b4 {[%emt 0:00:12]}
Rf3 {[%emt 0:00:08]} 86. Bd5 {[%emt 0:00:09]} Rf1 {[%emt 0:00:10]} 87. Kc4 {
[%emt 0:00:14]} Bg1 {[%emt 0:00:05]} 88. a7 {[%emt 0:00:17]} Rc1+ {[%emt 0:00:
19]} 89. Kb5 {[%emt 0:00:19]} Ra1 {[%emt 0:00:12]} 90. Rxf7+ {[%emt 0:00:01]}
Kg6 {[%emt 0:00:07]} 91. Rf1 {[%emt 0:00:03]} 1-0

[Event "FIDE World Cup 2013"]
[Site "TromsÃ¸"]
[Date "2013.08.13"]
[Round "1.4"]
[White "Sasikiran, Krishnan"]
[Black "Lupulescu, Constantin"]
[Result "1-0"]
[ECO "E10"]
[WhiteElo "2660"]
[BlackElo "2650"]
[PlyCount "90"]
[EventDate "2013.??.??"]
[EventCountry "NOR"]
[TimeControl "1500+10"]

1. d4 {[%emt 0:00:00]} Nf6 {[%emt 0:00:00]} 2. c4 {[%emt 0:00:00]} e6 {[%emt 0:
00:00]} 3. Nf3 {[%emt 0:00:00]} d5 {[%emt 0:00:00]} 4. g3 {[%emt 0:01:00]} Bb4+
{[%emt 0:00:01]} 5. Bd2 {[%emt 0:00:18]} Be7 {[%emt 0:00:03]} 6. Bg2 {[%emt 0:
00:26]} c6 {[%emt 0:00:07]} 7. b3 {[%emt 0:01:46]} b6 {[%emt 0:03:37]} 8. Bc3 {
[%emt 0:00:34]} Ne4 {[%emt 0:00:55]} 9. Bb2 {[%emt 0:01:20]} Nd7 {[%emt 0:01:
25]} 10. O-O {[%emt 0:00:15]} O-O {[%emt 0:00:51]} 11. Nbd2 {[%emt 0:00:23]} f5
{[%emt 0:00:19]} 12. Ne1 {[%emt 0:01:02]} Bb7 {[%emt 0:01:29]} 13. Nd3 {[%emt
0:00:38]} Bd6 {[%emt 0:00:33]} 14. e3 {[%emt 0:02:01]} Qe7 {[%emt 0:00:10]} 15.
Re1 {[%emt 0:01:39]} Rad8 {[%emt 0:02:16]} 16. f3 {[%emt 0:03:06]} Nxd2 {[%emt
0:01:39]} 17. Qxd2 {[%emt 0:00:01]} c5 {[%emt 0:00:24]} 18. cxd5 {[%emt 0:00:
13]} exd5 {[%emt 0:00:15]} 19. Rac1 {[%emt 0:00:16]} Rc8 {[%emt 0:01:30]} 20.
dxc5 {[%emt 0:01:11]} bxc5 {[%emt 0:00:56]} 21. e4 {[%emt 0:01:50]} dxe4 {
[%emt 0:02:47]} 22. fxe4 {[%emt 0:00:02]} fxe4 {[%emt 0:01:55]} 23. Nf2 {[%emt
0:00:08]} Ne5 {[%emt 0:00:11]} 24. Nxe4 {[%emt 0:02:35]} Bc7 {[%emt 0:05:22]}
25. Nf6+ {[%emt 0:05:05]} Qxf6 {[%emt 0:00:21]} 26. Bxb7 {[%emt 0:00:01]} Rcd8
{[%emt 0:01:31]} 27. Qe2 {[%emt 0:00:23]} Rfe8 {[%emt 0:00:11]} 28. Kh1 {[%emt
0:00:43]} Qb6 {[%emt 0:00:33]} 29. Qe4 {[%emt 0:01:03]} Bd6 {[%emt 0:00:12]}
30. Rcd1 {[%emt 0:00:32]} Kh8 {[%emt 0:00:04]} 31. Bd5 {[%emt 0:00:35]} h6 {
[%emt 0:00:04]} 32. Qh4 {[%emt 0:00:44]} Bb8 {[%emt 0:00:09]} 33. Qh5 {[%emt 0:
00:17]} Qc7 {[%emt 0:00:21]} 34. Be4 {[%emt 0:00:12]} Qf7 {[%emt 0:00:13]} 35.
Qxf7 {[%emt 0:00:11]} Nxf7 {[%emt 0:00:02]} 36. Bg6 {[%emt 0:00:07]} Rxd1 {
[%emt 0:00:21]} 37. Rxd1 {[%emt 0:00:01]} Kg8 {[%emt 0:00:02]} 38. Ba3 {[%emt
0:00:18]} Re6 {[%emt 0:00:04]} 39. Bxf7+ {[%emt 0:00:06]} Kxf7 {[%emt 0:00:02]}
40. Bxc5 {[%emt 0:00:01]} Ke8 {[%emt 0:00:21]} 41. Rd2 {[%emt 0:00:13]} a6 {
[%emt 0:00:12]} 42. Kg2 {[%emt 0:00:02]} Bc7 {[%emt 0:00:02]} 43. b4 {[%emt 0:
00:15]} h5 {[%emt 0:00:16]} 44. Kf3 {[%emt 0:00:23]} Rf6+ {[%emt 0:00:02]} 45.
Ke4 {[%emt 0:00:04]} Rf1 {[%emt 0:00:42]} 1-0

[Event "FIDE World Cup 2013"]
[Site "TromsÃ¸"]
[Date "2013.08.13"]
[Round "1.4"]
[White "Shirov, Alexei"]
[Black "Hou, Yifan"]
[Result "1-0"]
[ECO "D38"]
[WhiteElo "2696"]
[BlackElo "2600"]
[PlyCount "55"]
[EventDate "2013.??.??"]
[EventCountry "NOR"]
[TimeControl "1500+10"]

1. d4 {[%emt 0:00:00]} Nf6 {[%emt 0:00:00]} 2. c4 {[%emt 0:00:00]} e6 {[%emt 0:
00:00]} 3. Nf3 {[%emt 0:00:00]} d5 {[%emt 0:00:00]} 4. Nc3 {[%emt 0:00:00]} Bb4
{[%emt 0:00:00]} 5. Qa4+ {[%emt 0:00:00]} Nc6 {[%emt 0:00:01]} 6. e3 {[%emt 0:
00:01]} O-O {[%emt 0:00:02]} 7. Qc2 {[%emt 0:00:10]} dxc4 {[%emt 0:01:21]} 8.
Bxc4 {[%emt 0:00:05]} e5 {[%emt 0:03:07]} 9. dxe5 {[%emt 0:00:13]} Ng4 {[%emt
0:00:02]} 10. O-O {[%emt 0:00:06]} Ngxe5 {[%emt 0:00:24]} 11. Nxe5 {[%emt 0:00:
02]} Nxe5 {[%emt 0:00:01]} 12. Be2 {[%emt 0:00:04]} Bg4 {[%emt 0:03:29]} 13. f3
{[%emt 0:07:31]} Bd7 {[%emt 0:01:09]} 14. a3 {[%emt 0:04:44]} Bd6 {[%emt 0:00:
29]} 15. f4 {[%emt 0:01:43]} Nc6 {[%emt 0:00:30]} 16. b4 {[%emt 0:02:19]} a6 {
[%emt 0:02:20]} 17. Bb2 {[%emt 0:01:11]} Re8 {[%emt 0:00:45]} 18. Rf3 {[%emt 0:
01:42]} Re6 {[%emt 0:03:22]} 19. Bd3 {[%emt 0:00:49]} Rh6 {[%emt 0:01:31]} 20.
Rg3 {[%emt 0:00:29]} Bf8 {[%emt 0:02:58]} 21. Nd5 {[%emt 0:01:56]} Qh4 {[%emt
0:02:39]} 22. Qc3 {[%emt 0:00:25]} Qxh2+ {[%emt 0:00:02]} 23. Kf2 {[%emt 0:00:
01]} f6 {[%emt 0:00:07]} 24. Nxf6+ {[%emt 0:03:18]} Rxf6 {[%emt 0:01:35]} 25.
Rh1 {[%emt 0:00:03]} Qxg3+ {[%emt 0:00:19]} 26. Kxg3 {[%emt 0:00:01]} h6 {
[%emt 0:00:32]} 27. Qc4+ {[%emt 0:00:13]} Be6 {[%emt 0:00:28]} 28. Qc2 {[%emt
0:00:05]} 1-0

[Event "FIDE World Cup 2013"]
[Site "TromsÃ¸"]
[Date "2013.08.13"]
[Round "1.4"]
[White "Swiercz, Dariusz"]
[Black "Zvjaginsev, Vadim"]
[Result "1-0"]
[ECO "B15"]
[WhiteElo "2650"]
[BlackElo "2659"]
[PlyCount "71"]
[EventDate "2013.??.??"]
[EventCountry "NOR"]
[TimeControl "1500+10"]

1. e4 {[%emt 0:00:00]} c6 {[%emt 0:00:00]} 2. d4 {[%emt 0:00:00]} d5 {[%emt 0:
00:00]} 3. Nc3 {[%emt 0:00:00]} dxe4 {[%emt 0:00:00]} 4. Nxe4 {[%emt 0:00:00]}
Nf6 {[%emt 0:00:00]} 5. Nxf6+ {[%emt 0:00:00]} exf6 {[%emt 0:00:00]} 6. c3 {
[%emt 0:00:00]} Bd6 {[%emt 0:00:00]} 7. Bd3 {[%emt 0:00:02]} O-O {[%emt 0:00:
00]} 8. Ne2 {[%emt 0:00:01]} Nd7 {[%emt 0:03:40]} 9. Qc2 {[%emt 0:00:05]} h6 {
[%emt 0:01:20]} 10. O-O {[%emt 0:01:37]} Re8 {[%emt 0:00:44]} 11. Be3 {[%emt 0:
05:16]} Nf8 {[%emt 0:00:47]} 12. Rfe1 {[%emt 0:00:30]} Bg4 {[%emt 0:00:26]} 13.
h3 {[%emt 0:00:56]} Bh5 {[%emt 0:00:47]} 14. Nf4 {[%emt 0:01:34]} Bxf4 {[%emt
0:00:06]} 15. Bxf4 {[%emt 0:00:02]} Bg6 {[%emt 0:00:08]} 16. Be3 {[%emt 0:01:
32]} Qa5 {[%emt 0:03:57]} 17. a4 {[%emt 0:01:51]} Qh5 {[%emt 0:02:58]} 18. Rad1
{[%emt 0:01:35]} Rad8 {[%emt 0:01:26]} 19. b4 {[%emt 0:03:52]} Bxd3 {[%emt 0:
01:03]} 20. Qxd3 {[%emt 0:00:17]} Ng6 {[%emt 0:00:45]} 21. b5 {[%emt 0:02:06]}
f5 {[%emt 0:00:19]} 22. f3 {[%emt 0:04:30]} Nh4 {[%emt 0:00:45]} 23. Bf4 {
[%emt 0:00:15]} g5 {[%emt 0:02:08]} 24. Bc7 {[%emt 0:00:13]} Rc8 {[%emt 0:00:
06]} 25. Be5 {[%emt 0:00:51]} Re6 {[%emt 0:01:28]} 26. Bg3 {[%emt 0:01:46]}
Rce8 {[%emt 0:00:21]} 27. Rxe6 {[%emt 0:00:03]} Rxe6 {[%emt 0:00:01]} 28. c4 {
[%emt 0:00:17]} g4 {[%emt 0:00:22]} 29. d5 {[%emt 0:00:11]} cxd5 {[%emt 0:00:
08]} 30. cxd5 {[%emt 0:00:02]} Rg6 {[%emt 0:00:14]} 31. fxg4 {[%emt 0:00:23]}
fxg4 {[%emt 0:00:02]} 32. d6 {[%emt 0:00:13]} Nf3+ {[%emt 0:01:49]} 33. gxf3 {
[%emt 0:00:01]} Qxh3 {[%emt 0:00:53]} 34. Kf2 {[%emt 0:00:23]} gxf3 {[%emt 0:
00:46]} 35. Rg1 {[%emt 0:00:06]} Qd7 {[%emt 0:00:54]} 36. Qxf3 {[%emt 0:00:08]}
1-0